Workbook

Sheet APROV 1
A1: SECRETARÍA DE EDUCACIÓN PÚBLICA DEL ESTADO DE BAJA CALIFORNIA SUR
A2: DIRECCIÓN DE EDUCACIÓN SECUNDARIA
A3: CICLO ESCOLAR 2018 - 2019
A5: APROVECHAMIENTO Y RIESGO DE NO ACREDITAR
A7: DIRECCIÓN: EDUCACIÓN SECUNDARIA DIRECTOR: PROFR. RUMUALDO RAMÍREZ GUTIERRÉZ PERIODO DE EVALUACIÓN: 3ER. PERIODO
A9: Promedio de Aprovechamiento de los Campos de Formación Académica | W9: Promedio de Aprovechamiento de las Áreas de Desarrollo Personal y Social
A10: Modalidad | B10: Lengua Materna (Español) | E10: Lengua Extranjera (Inglés) | H10: Matemáticas | K10: Ciencias y Tecnología Biología | N10: Historia | Q10: Geografía | T10: Formación Cívica y Ética | W10: Artes | Z10: Educación Física | AC10: Prom. Final
B11: CALIF | E11: CALIF | H11: CALIF | K11: CALIF | N11: CALIF | Q11: CALIF | T11: CALIF | W11: CALIF | Z11: CALIF | AC11: CALIF
A12: Grales. | B12: 8.4 | E12: 8.4 | H12: 8.2 | K12: 8.4 | N12: 8.5 | Q12: 8.6 | T12: 8.6 | W12: 9.2 | Z12: 9.6 | AC12: =IFERROR(ROUND(AVERAGE(B12:AB12),1),"") -> 8.7
A13: Técs. | B13: 8.2 | E13: 8.2 | H13: 8.1 | K13: 8.2 | N13: 8.1 | Q13: 8.3 | T13: 8.3 | W13: 9 | Z13: 9.3 | AC13: 8.4
A14: Telesec. | B14: 8.2 | E14: 8.1 | H14: 8.1 | K14: 8.3 | N14: 8.2 | Q14: 8.3 | T14: 8.5 | W14: 9.1 | Z14: 9.2 | AC14: 8.4
A19: Gral. | B19: =IFERROR(ROUND(AVERAGE(B12:D18),1),"") -> 8.3 | E19: =IFERROR(ROUND(AVERAGE(E12:G18),1),"") -> 8.2 | H19: =IFERROR(ROUND(AVERAGE(H12:J18),1),"") -> 8.1 | K19: =IFERROR(ROUND(AVERAGE(K12:M18),1),"") -> 8.3 | N19: =IFERROR(ROUND(AVERAGE(N12:P18),1),"") -> 8.3 | Q19: =IFERROR(ROUND(AVERAGE(Q12:S18),1),"") -> 8.4 | T19: =IFERROR(ROUND(AVERAGE(T12:V18),1),"") -> 8.5 | W19: =IFERROR(ROUND(AVERAGE(W12:Y18),1),"") -> 9.1 | Z19: =IFERROR(ROUND(AVERAGE(Z12:AB18),1),"") -> 9.4 | AC19: =IFERROR(ROUND(AVERAGE(AC12:AD18),1),"") -> 8.5
A21: Campos de Formación Académica en riesgo de no acreditar | W21: Áreas de Desarrollo Personal y Social en riesgo de no acreditar
A22: Modalidad | B22: Lengua Materna (Español) | E22: Lengua Extranjera (Inglés) | H22: Matemáticas | K22: Ciencias y Tecnología Biología | N22: Historia | Q22: Geografía | T22: Formación Cívica y Ética | W22: Artes | Z22: Educación Física | AC22: Total
B23: 5 | C23: 6 | D23: T | E23: 5 | F23: 6 | G23: T | H23: 5 | I23: 6 | J23: T | K23: 5 | L23: 6 | M23: T | N23: 5 | O23: 6 | P23: T | Q23: 5 | R23: 6 | S23: T | T23: 5 | U23: 6 | V23: T | W23: 5 | X23: 6 | Y23: T | Z23: 5 | AA23: 6 | AB23: T | AC23: 5 | AD23: 6
A24: Grales. | B24: 100 | C24: 711 | D24: =IF(SUM(B24,C24)=0,"",SUM(B24,C24)) -> 811 | E24: 149 | F24: 715 | G24: =IF(SUM(E24,F24)=0,"",SUM(E24,F24)) -> 864 | H24: 149 | I24: 789 | J24: =IF(SUM(H24,I24)=0,"",SUM(H24,I24)) -> 938 | K24: 123 | L24: 583 | M24: =IF(SUM(K24,L24)=0,"",SUM(K24,L24)) -> 706 | N24: 107 | O24: 625 | P24: =IF(SUM(N24,O24)=0,"",SUM(N24,O24)) -> 732 | Q24: 115 | R24: 589 | S24: =IF(SUM(Q24,R24)=0,"",SUM(Q24,R24)) -> 704 | T24: 86 | U24: 568 | V24: =IF(SUM(T24,U24)=0,"",SUM(T24,U24)) -> 654 | W24: 44 | X24: 195 | Y24: =IF(SUM(W24,X24)=0,"",SUM(W24,X24)) -> 239 | Z24: 21 | AA24: 49 | AB24: =IF(SUM(Z24,AA24)=0,"",SUM(Z24,AA24)) -> 70 | AC24: =IF(SUM(B24,E24,H24,K24,N24,Q24,T24,W24,Z24)=0,"",SUM(B24,E24,H24,K24,N24,Q24,T24,W24,Z24)) -> 894 | AD24: =IF(SUM(C24,F24,I24,L24,O24,R24,U24,X24,AA24)=0,"",SUM(C24,F24,I24,L24,O24,R24,U24,X24,AA24)) -> 4824
A25: Técs | B25: 164 | C25: 514 | D25: =IF(SUM(B25,C25)=0,"",SUM(B25,C25)) -> 678 | E25: 167 | F25: 487 | G25: =IF(SUM(E25,F25)=0,"",SUM(E25,F25)) -> 654 | H25: 165 | I25: 678 | J25: =IF(SUM(H25,I25)=0,"",SUM(H25,I25)) -> 843 | K25: 144 | L25: 589 | M25: =IF(SUM(K25,L25)=0,"",SUM(K25,L25)) -> 733 | N25: 234 | O25: 563 | P25: =IF(SUM(N25,O25)=0,"",SUM(N25,O25)) -> 797 | Q25: 140 | R25: 544 | S25: =IF(SUM(Q25,R25)=0,"",SUM(Q25,R25)) -> 684 | T25: 206 | U25: 518 | V25: =IF(SUM(T25,U25)=0,"",SUM(T25,U25)) -> 724 | W25: 34 | X25: 233 | Y25: =IF(SUM(W25,X25)=0,"",SUM(W25,X25)) -> 267 | Z25: 19 | AA25: 48 | AB25: =IF(SUM(Z25,AA25)=0,"",SUM(Z25,AA25)) -> 67 | AC25: =IF(SUM(B25,E25,H25,K25,N25,Q25,T25,W25,Z25)=0,"",SUM(B25,E25,H25,K25,N25,Q25,T25,W25,Z25)) -> 1273 | AD25: =IF(SUM(C25,F25,I25,L25,O25,R25,U25,X25,AA25)=0,"",SUM(C25,F25,I25,L25,O25,R25,U25,X25,AA25)) -> 4174
A26: Telesec. | B26: 48 | C26: 140 | D26: 188 | E26: 59 | F26: 174 | G26: 233 | H26: 55 | I26: 181 | J26: 236 | K26: 43 | L26: 120 | M26: 163 | N26: 51 | O26: 159 | P26: 210 | Q26: 46 | R26: 125 | S26: 171 | T26: 41 | U26: 102 | V26: 143 | W26: 29 | X26: 95 | Y26: 124 | Z26: 15 | AA26: 42 | AB26: 57 | AC26: 387 | AD26: 1138
D30: =IF(SUM(B30,C30)=0,"",SUM(B30,C30)) ->  | G30: =IF(SUM(E30,F30)=0,"",SUM(E30,F30)) ->  | J30: =IF(SUM(H30,I30)=0,"",SUM(H30,I30)) ->  | M30: =IF(SUM(K30,L30)=0,"",SUM(K30,L30)) ->  | P30: =IF(SUM(N30,O30)=0,"",SUM(N30,O30)) ->  | S30: =IF(SUM(Q30,R30)=0,"",SUM(Q30,R30)) ->  | AB30: =IF(SUM(Z30,AA30)=0,"",SUM(Z30,AA30)) -> 
A31: Total | B31: =IF(SUM(B24:B30)=0,"",SUM(B24:B30)) -> 312 | C31: 1365 | D31: 1677 | E31: 375 | F31: 1376 | G31: 1751 | H31: 369 | I31: 1648 | J31: 2017 | K31: 310 | L31: 1292 | M31: 1602 | N31: 392 | O31: 1347 | P31: 1739 | Q31: 301 | R31: 1258 | S31: 1559 | T31: 333 | U31: 1188 | V31: 1521 | W31: 107 | X31: 523 | Y31: 630 | Z31: 55 | AA31: 139 | AB31: 194 | AC31: 2554 | AD31: 10136
A33: Nota: Para las columnas "Campos de Formación Académica y Áreas de Desarrollo Personal y Social en riesgo de no acreditar" registre la cantidad de cincos o seis que existen en cada campo o área.

Sheet Gráfica APROV 1
B1: Lengua Materna (Español) | C1: Lengua Extranjera (Inglés) | D1: Matemáticas | E1: Ciencias y Tecnología Biología | F1: Historia | G1: Geografía | H1: Formación Cívica y Ética | I1: Artes | J1: Educación Física
B2: ='APROV 1'!B19:D19 -> 8.3 | C2: ='APROV 1'!E19 -> 8.2 | D2: ='APROV 1'!H19 -> 8.1 | E2: ='APROV 1'!K19 -> 8.3 | F2: ='APROV 1'!N19 -> 8.3 | G2: ='APROV 1'!Q19 -> 8.4 | H2: ='APROV 1'!T19 -> 8.5 | I2: ='APROV 1'!W19 -> 9.1 | J2: ='APROV 1'!Z19 -> 9.4

Sheet APROV 2 y 3
A1: SECRETARÍA DE EDUCACIÓN PÚBLICA DEL ESTADO DE BAJA CALIFORNIA SUR
A2: DIRECCIÓN DE EDUCACIÓN SECUNDARIA
A3: CICLO ESCOLAR 2018 - 2019
A5: APROVECHAMIENTO Y RIESGO DE NO ACREDITAR
A7: DIRECCIÓN: EDUCACIÓN SECUNDARIA DIRECTOR: PROFR. RUMUALDO RAMÍREZ GUTIERRÉZ PERIODO DE EVALUACIÓN: 3ER. PERIODO.
A9: Promedio de Aprovechamiento de los Campos de Formación Académica | T9: Promedio de Aprovechamiento de las Áreas de Desarrollo Personal y Social
A10: Modalidad | B10: Español II | E10: Segunda Lengua Inglés II | H10: Matemáticas II | K10: Ciencias II (Enfásis en Física) | N10: Historia I | Q10: Formación Cívica y Ética I | T10: Artes | W10: Educación Física | Z10: Prom. Final
B11: CALIF | E11: CALIF | H11: CALIF | K11: CALIF | N11: CALIF | Q11: CALIF | T11: CALIF | W11: CALIF | Z11: CALIF
A12: Grales. | B12: 8.3 | E12: 8.4 | H12: 8.1 | K12: 8.3 | N12: 8.5 | Q12: 8.5 | T12: 9.2 | W12: 9.5 | Z12: =IFERROR(ROUND(AVERAGE(B12:Y12),1),"") -> 8.6
A13: Técs. | B13: 7.9 | E13: 8.1 | H13: 7.8 | K13: 8.1 | N13: 8.1 | Q13: 8.3 | T13: 8.7 | W13: 9.3 | Z13: =IFERROR(ROUND(AVERAGE(B13:Y13),1),"") -> 8.3
A14: Telesec. | B14: 8.2 | E14: 8.1 | H14: 8.1 | K14: 8.2 | N14: 8.2 | Q14: 8.4 | T14: 9.1 | W14: 9.3 | Z14: 8.5
A19: Gral. | B19: =IFERROR(ROUND(AVERAGE(B12:D18),1),"") -> 8.1 | E19: =IFERROR(ROUND(AVERAGE(E12:G18),1),"") -> 8.2 | H19: =IFERROR(ROUND(AVERAGE(H12:J18),1),"") -> 8 | K19: =IFERROR(ROUND(AVERAGE(K12:M18),1),"") -> 8.2 | N19: =IFERROR(ROUND(AVERAGE(N12:P18),1),"") -> 8.3 | Q19: =IFERROR(ROUND(AVERAGE(Q12:S18),1),"") -> 8.4 | T19: =IFERROR(ROUND(AVERAGE(T12:V18),1),"") -> 9 | W19: =IFERROR(ROUND(AVERAGE(W12:Y18),1),"") -> 9.4 | Z19: =IFERROR(ROUND(AVERAGE(Z12:AA18),1),"") -> 8.5
A21: Campos de Formación Académica en situacion de riesgo de no acreditar | T21: Áreas de Desarrollo Personal y Social en situacion de riesgo de no acreditar
A22: Modalidad | B22: Español II | E22: Segunda Lengua Inglés II | H22: Matemáticas II | K22: Ciencias II (Enfásis en Física) | N22: Historia I | Q22: Formación Cívica y Ética I | T22: Artes | W22: Educación Física | Z22: Total
B23: 5 | C23: 6 | D23: T | E23: 5 | F23: 6 | G23: T | H23: 5 | I23: 6 | J23: T | K23: 5 | L23: 6 | M23: T | N23: 5 | O23: 6 | P23: T | Q23: 5 | R23: 6 | S23: T | T23: 5 | U23: 6 | V23: T | W23: 5 | X23: 6 | Y23: T | Z23: 5 | AA23: 6
A24: Grales. | B24: 198 | C24: 842 | D24: =IF(SUM(B24,C24)=0,"",SUM(B24,C24)) -> 1040 | E24: 194 | F24: 776 | G24: =IF(SUM(E24,F24)=0,"",SUM(E24,F24)) -> 970 | H24: 221 | I24: 948 | J24: =IF(SUM(H24,I24)=0,"",SUM(H24,I24)) -> 1169 | K24: 212 | L24: 812 | M24: =IF(SUM(K24,L24)=0,"",SUM(K24,L24)) -> 1024 | N24: 140 | O24: 669 | P24: =IF(SUM(N24,O24)=0,"",SUM(N24,O24)) -> 809 | Q24: 138 | R24: 638 | S24: =IF(SUM(Q24,R24)=0,"",SUM(Q24,R24)) -> 776 | T24: 92 | U24: 312 | V24: =IF(SUM(T24,U24)=0,"",SUM(T24,U24)) -> 404 | W24: 38 | X24: 62 | Y24: =IF(SUM(W24,X24)=0,"",SUM(W24,X24)) -> 100 | Z24: =IF(SUM(B24,E24,H24,K24,N24,Q24,T24,W24)=0,"",SUM(B24,E24,H24,K24,N24,Q24,T24,W24)) -> 1233 | AA24: =IF(SUM(C24,F24,I24,L24,O24,R24,U24,X24)=0,"",SUM(C24,F24,I24,L24,O24,R24,U24,X24)) -> 5059
A25: Técs. | B25: 233 | C25: 583 | D25: 816 | E25: 312 | F25: 839 | G25: 1151 | H25: 220 | I25: 738 | J25: 958 | K25: 330 | L25: 570 | M25: 900 | N25: 233 | O25: 573 | P25: 806 | Q25: 214 | R25: 484 | S25: 698 | T25: 88 | U25: 324 | V25: 412 | W25: 26 | X25: 44 | Y25: 70 | Z25: =IF(SUM(B25,E25,H25,K25,N25,Q25,T25,W25)=0,"",SUM(B25,E25,H25,K25,N25,Q25,T25,W25)) -> 1656 | AA25: =IF(SUM(C25,F25,I25,L25,O25,R25,U25,X25)=0,"",SUM(C25,F25,I25,L25,O25,R25,U25,X25)) -> 4155
A26: Telesec. | B26: 48 | C26: 124 | D26: 172 | E26: 48 | F26: 153 | G26: 201 | H26: 36 | I26: 177 | J26: 213 | K26: 63 | L26: 159 | M26: 222 | N26: 43 | O26: 137 | P26: 180 | Q26: 35 | R26: 111 | S26: 146 | T26: 12 | U26: 64 | V26: 76 | W26: 6 | X26: 34 | Y26: 40 | Z26: 291 | AA26: 959
A31: Total | B31: =IF(SUM(B24:B30)=0,"",SUM(B24:B30)) -> 479 | C31: 1549 | D31: 2028 | E31: 554 | F31: 1768 | G31: 2322 | H31: 477 | I31: 1863 | J31: 2340 | K31: 605 | L31: 1541 | M31: 2146 | N31: 416 | O31: 1379 | P31: 1795 | Q31: 387 | R31: 1233 | S31: 1620 | T31: 192 | U31: 700 | V31: 892 | W31: 70 | X31: 140 | Y31: 210 | Z31: 3180 | AA31: 10173
A33: Nota: Para las columnas "Campos de Formación Académica y Áreas de Desarrollo Personal y Social en riesgo de no acreditar" registre la cantidad de cincos o seis que existen en cada campo o área.
A36: SECRETARÍA DE EDUCACIÓN PÚBLICA DEL ESTADO DE BAJA CALIFORNIA SUR
A37: DIRECCIÓN DE EDUCACIÓN SECUNDARIA
A38: CICLO ESCOLAR 2018 - 2019
A40: APROVECHAMIENTO Y RIESGO DE NO ACREDITAR
A42: DIRECCIÓN: EDUCACIÓN SECUNDARIA DIRECTOR: PROFR. RUMUALDO RAMÍREZ GUTIERRÉZ PERIODO DE EVALUACIÓN: 3ER. PERIODO.
A44: Promedio de Aprovechamiento de los Campos de Formación Académica | T44: Promedio de Aprovechamiento de las Áreas de Desarrollo Personal y Social
A45: Modalidad | B45: Español III | E45: Segunda Lengua Inglés III | H45: Matemáticas III | K45: Ciencias III (Enfásis en Química) | N45: Historia II | Q45: Formación Cívica y Ética II | T45: Artes | W45: Educación Física | Z45: Prom. Final
B46: CALIF | E46: CALIF | H46: CALIF | K46: CALIF | N46: CALIF | Q46: CALIF | T46: CALIF | W46: CALIF | Z46: CALIF
A47: Grales. | B47: 8.5 | E47: 8.5 | H47: 8.2 | K47: 8.3 | N47: 8.6 | Q47: 8.7 | T47: 9.2 | W47: 9.5 | Z47: =IFERROR(ROUND(AVERAGE(B47:Y47),1),"") -> 8.7
A48: Técs. | B48: 8.3 | E48: 8.1 | H48: 7.8 | K48: 8 | N48: 8.2 | Q48: 8.3 | T48: 8.9 | W48: 9.4 | Z48: =IFERROR(ROUND(AVERAGE(B48:Y48),1),"") -> 8.4
A49: Telesec. | B49: 8.3 | E49: 8.3 | H49: 8.1 | K49: 8.3 | N49: 8.3 | Q49: 8.6 | T49: 9.2 | W49: 9.4 | Z49: 8.6
A54: Gral. | B54: =IFERROR(ROUND(AVERAGE(B47:D53),1),"") -> 8.4 | E54: =IFERROR(ROUND(AVERAGE(E47:G53),1),"") -> 8.3 | H54: =IFERROR(ROUND(AVERAGE(H47:J53),1),"") -> 8 | K54: =IFERROR(ROUND(AVERAGE(K47:M53),1),"") -> 8.2 | N54: =IFERROR(ROUND(AVERAGE(N47:P53),1),"") -> 8.4 | Q54: =IFERROR(ROUND(AVERAGE(Q47:S53),1),"") -> 8.5 | T54: =IFERROR(ROUND(AVERAGE(T47:V53),1),"") -> 9.1 | W54: =IFERROR(ROUND(AVERAGE(W47:Y53),1),"") -> 9.4 | Z54: =IFERROR(ROUND(AVERAGE(Z47:AA53),1),"") -> 8.6
A56: Campos de Formación Académica en situacion de riesgo de no acreditar | T56: Áreas de Desarrollo Personal y Social en situacion de riesgo de no acreditar
A57: Modalidad | B57: Español III | E57: Segunda Lengua Inglés III | H57: Matemáticas III | K57: Ciencias III (Enfásis en Química) | N57: Historia II | Q57: Formación Cívica y Ética II | T57: Artes | W57: Educación Física | Z57: Total
B58: 5 | C58: 6 | D58: T | E58: 5 | F58: 6 | G58: T | H58: 5 | I58: 6 | J58: T | K58: 5 | L58: 6 | M58: T | N58: 5 | O58: 6 | P58: T | Q58: 5 | R58: 6 | S58: T | T58: 5 | U58: 6 | V58: T | W58: 5 | X58: 6 | Y58: T | Z58: 5 | AA58: 6
A59: Grales. | B59: 115 | C59: 689 | D59: =IF(SUM(B59,C59)=0,"",SUM(B59,C59)) -> 804 | E59: 127 | F59: 734 | G59: =IF(SUM(E59,F59)=0,"",SUM(E59,F59)) -> 861 | H59: 145 | I59: 866 | J59: =IF(SUM(H59,I59)=0,"",SUM(H59,I59)) -> 1011 | K59: 195 | L59: 778 | M59: =IF(SUM(K59,L59)=0,"",SUM(K59,L59)) -> 973 | N59: 87 | O59: 528 | P59: =IF(SUM(N59,O59)=0,"",SUM(N59,O59)) -> 615 | Q59: 65 | R59: 523 | S59: =IF(SUM(Q59,R59)=0,"",SUM(Q59,R59)) -> 588 | T59: 51 | U59: 202 | V59: =IF(SUM(T59,U59)=0,"",SUM(T59,U59)) -> 253 | W59: 12 | X59: 57 | Y59: =IF(SUM(W59,X59)=0,"",SUM(W59,X59)) -> 69 | Z59: =IF(SUM(B59,E59,H59,K59,N59,Q59,T59,W59)=0,"",SUM(B59,E59,H59,K59,N59,Q59,T59,W59)) -> 797 | AA59: =IF(SUM(C59,F59,I59,L59,O59,R59,U59,X59)=0,"",SUM(C59,F59,I59,L59,O59,R59,U59,X59)) -> 4377
A60: Técs. | B60: 165 | C60: 517 | D60: =IF(SUM(B60,C60)=0,"",SUM(B60,C60)) -> 682 | E60: 176 | F60: 623 | G60: =IF(SUM(E60,F60)=0,"",SUM(E60,F60)) -> 799 | H60: 283 | I60: 843 | J60: =IF(SUM(H60,I60)=0,"",SUM(H60,I60)) -> 1126 | K60: 211 | L60: 667 | M60: =IF(SUM(K60,L60)=0,"",SUM(K60,L60)) -> 878 | N60: 195 | O60: 555 | P60: =IF(SUM(N60,O60)=0,"",SUM(N60,O60)) -> 750 | Q60: 182 | R60: 509 | S60: 691 | T60: 60 | U60: 269 | V60: 329 | W60: 23 | X60: 46 | Y60: 69 | Z60: =IF(SUM(B60,E60,H60,K60,N60,Q60,T60,W60)=0,"",SUM(B60,E60,H60,K60,N60,Q60,T60,W60)) -> 1295 | AA60: =IF(SUM(C60,F60,I60,L60,O60,R60,U60,X60)=0,"",SUM(C60,F60,I60,L60,O60,R60,U60,X60)) -> 4029
A61: Telesec. | B61: 23 | C61: 93 | D61: 116 | E61: 29 | F61: 122 | G61: 151 | H61: 34 | I61: 125 | J61: 159 | K61: 32 | L61: 108 | M61: 140 | N61: 35 | O61: 115 | P61: 150 | Q61: 31 | R61: 91 | S61: 122 | T61: 21 | U61: 97 | V61: 118 | W61: 7 | X61: 41 | Y61: 48 | Z61: 212 | AA61: 792
A66: Total | B66: =IF(SUM(B59:B65)=0,"",SUM(B59:B65)) -> 303 | C66: 1299 | D66: 1602 | E66: 332 | F66: 1479 | G66: 1811 | H66: 462 | I66: 1834 | J66: 2296 | K66: 438 | L66: 1553 | M66: 1991 | N66: 317 | O66: 1198 | P66: 1515 | Q66: 278 | R66: 1123 | S66: 1401 | T66: 132 | U66: 568 | V66: 700 | W66: 42 | X66: 144 | Y66: 186 | Z66: 2304 | AA66: 9198
A67: Nota: Para las columnas "Campos de Formación Académica y Áreas de Desarrollo Personal y Social en riesgo de no acreditar" registre la cantidad de cincos o seis que existen en cada campo o área.

Sheet Gráfica APROV 2 Y 3
B2: Español II | C2: Segunda Lengua Inglés II | D2: Matemáticas II | E2: Ciencias II (Enfásis en Física) | F2: Historia I | G2: Formación Cívica y Ética I | H2: Artes | I2: Educación Física
B3: ='APROV 2 y 3'!B19 -> 8.1 | C3: ='APROV 2 y 3'!E19 -> 8.2 | D3: ='APROV 2 y 3'!H19 -> 8 | E3: ='APROV 2 y 3'!K19 -> 8.2 | F3: ='APROV 2 y 3'!N19 -> 8.3 | G3: ='APROV 2 y 3'!Q19 -> 8.4 | H3: ='APROV 2 y 3'!T19 -> 9 | I3: ='APROV 2 y 3'!W19 -> 9.4
B19: Español III | C19: Segunda Lengua Inglés III | D19: Matemáticas III | E19: Ciencias III (Enfásis en Química) | F19: Historia II | G19: Formación Cívica y Ética II | H19: Artes | I19: Educación Física
B20: ='APROV 2 y 3'!B54 -> 8.4 | C20: ='APROV 2 y 3'!E54 -> 8.3 | D20: ='APROV 2 y 3'!H54 -> 8 | E20: ='APROV 2 y 3'!K54 -> 8.2 | F20: ='APROV 2 y 3'!N54 -> 8.4 | G20: ='APROV 2 y 3'!Q54 -> 8.5 | H20: ='APROV 2 y 3'!T54 -> 9.1 | I20: ='APROV 2 y 3'!W54 -> 9.4

Sheet Gráfica Promedios Finales
B10: PROMEDIO 1RO | C10: PROMEDIO 2DO | D10: PROMEDIO 3ERO
B11: =+'APROV 1'!AC19 -> 8.5 | C11: =+'APROV 2 y 3'!Z19 -> 8.5 | D11: =+'APROV 2 y 3'!Z54 -> 8.6

Sheet MATRICULA
A1: SECRETARÍA DE EDUCACIÓN PÚBLICA DEL ESTADO DE BAJA CALIFORNIA SUR
A2: DIRECCIÓN DE EDUCACIÓN SECUNDARIA
A3: CICLO ESCOLAR 2018 - 2019
A4: MATRÍCULA
A6: DIRECCIÓN: EDUCACIÓN SECUNDARIA DIRECTOR: PROFR. RUMUALDO RAMÍREZ GUTIERRÉZ PERIODO DE EVALUACIÓN: 3ER PERIODO
A8: Modalidad | B8: MATRÍCULA
B9: INSCRIPCIÓN INICIAL | N9: CAMBIOS DESDE OTRAS ESCUELAS (ALTAS)
B10: PRIMERO | E10: SEGUNDO | H10: TERCERO | K10: TOTAL | N10: PRIMERO | Q10: SEGUNDO | T10: TERCERO | W10: TOTAL
B11: H | C11: M | D11: T | E11: H | F11: M | G11: T | H11: H | I11: M | J11: T | K11: H | L11: M | M11: T | N11: H | O11: M | P11: T | Q11: H | R11: M | S11: T | T11: H | U11: M | V11: T | W11: H | X11: M | Y11: T
A12: Grales. | B12: 3415 | C12: 3169 | D12: =IF(SUM(B12,C12)=0,"",SUM(B12,C12)) -> 6584 | E12: 3250 | F12: 3155 | G12: =IF(SUM(E12,F12)=0,"",SUM(E12,F12)) -> 6405 | H12: 3132 | I12: 3088 | J12: =IF(SUM(H12,I12)=0,"",SUM(H12,I12)) -> 6220 | K12: =IF(SUM(B12,E12,H12)=0,"",SUM(B12,E12,H12)) -> 9797 | L12: =IF(SUM(C12,F12,I12)=0,"",SUM(SUM(C12,F12,I12))) -> 9412 | M12: =IF(SUM(K12,L12)=0,"",SUM(K12,L12)) -> 19209 | N12: 115 | O12: 125 | P12: =IF(SUM(N12,O12)=0,"",SUM(N12,O12)) -> 240 | Q12: 104 | R12: 114 | S12: =IF(SUM(Q12,R12)=0,"",SUM(Q12,R12)) -> 218 | T12: 88 | U12: 63 | V12: =IF(SUM(T12,U12)=0,"",SUM(T12,U12)) -> 151 | W12: =IF(SUM(N12,Q12,T12)=0,"",SUM(N12,Q12,T12)) -> 307 | X12: =IF(SUM(O12,R12,U12)=0,"",SUM(SUM(O12,R12,U12))) -> 302 | Y12: =IF(SUM(W12,X12)=0,"",SUM(W12,X12)) -> 609
A13: Técs. | B13: 2568 | C13: 2550 | D13: =IF(SUM(B13,C13)=0,"",SUM(B13,C13)) -> 5118 | E13: 2558 | F13: 2463 | G13: =IF(SUM(E13,F13)=0,"",SUM(E13,F13)) -> 5021 | H13: 2509 | I13: 2365 | J13: =IF(SUM(H13,I13)=0,"",SUM(H13,I13)) -> 4874 | K13: =IF(SUM(B13,E13,H13)=0,"",SUM(B13,E13,H13)) -> 7635 | L13: =IF(SUM(C13,F13,I13)=0,"",SUM(SUM(C13,F13,I13))) -> 7378 | M13: =IF(SUM(K13,L13)=0,"",SUM(K13,L13)) -> 15013 | N13: 53 | O13: 56 | P13: =IF(SUM(N13,O13)=0,"",SUM(N13,O13)) -> 109 | Q13: 51 | R13: 85 | S13: =IF(SUM(Q13,R13)=0,"",SUM(Q13,R13)) -> 136 | T13: 41 | U13: 49 | V13: =IF(SUM(T13,U13)=0,"",SUM(T13,U13)) -> 90 | W13: =IF(SUM(N13,Q13,T13)=0,"",SUM(N13,Q13,T13)) -> 145 | X13: =IF(SUM(O13,R13,U13)=0,"",SUM(SUM(O13,R13,U13))) -> 190 | Y13: =IF(SUM(W13,X13)=0,"",SUM(W13,X13)) -> 335
A14: Telesec. | B14: 790 | C14: 707 | D14: 1497 | E14: 695 | F14: 671 | G14: 1366 | H14: 725 | I14: 652 | J14: 1377 | K14: 2210 | L14: 2030 | M14: 4240 | N14: 37 | O14: 19 | P14: 56 | Q14: 17 | R14: 23 | S14: 40 | T14: 18 | U14: 16 | V14: 34 | W14: 72 | X14: 58 | Y14: 130
D20: =IF(SUM(B20,C20)=0,"",SUM(B20,C20)) ->  | G20: =IF(SUM(E20,F20)=0,"",SUM(E20,F20)) ->  | J20: =IF(SUM(H20,I20)=0,"",SUM(H20,I20)) ->  | K20: =IF(SUM(B20,E20,H20)=0,"",SUM(B20,E20,H20)) ->  | L20: =IF(SUM(C20,F20,I20)=0,"",SUM(SUM(C20,F20,I20))) ->  | M20: =IF(SUM(K20,L20)=0,"",SUM(K20,L20)) ->  | P20: =IF(SUM(N20,O20)=0,"",SUM(N20,O20)) ->  | S20: =IF(SUM(Q20,R20)=0,"",SUM(Q20,R20)) ->  | V20: =IF(SUM(T20,U20)=0,"",SUM(T20,U20)) ->  | W20: =IF(SUM(N20,Q20,T20)=0,"",SUM(N20,Q20,T20)) ->  | X20: =IF(SUM(O20,R20,U20)=0,"",SUM(SUM(O20,R20,U20))) ->  | Y20: =IF(SUM(W20,X20)=0,"",SUM(W20,X20)) -> 
A22: TOTAL | B22: =SUM(B12:B21) -> 6773 | C22: 6426 | D22: 13199 | E22: 6503 | F22: 6289 | G22: 12792 | H22: 6366 | I22: 6105 | J22: 12471 | K22: 19642 | L22: 18820 | M22: 38462 | N22: 205 | O22: 200 | P22: 405 | Q22: 172 | R22: 222 | S22: 394 | T22: 147 | U22: 128 | V22: 275 | W22: 524 | X22: 550 | Y22: 1074
A24: Modalidad | B24: BAJAS | Z24: EXISTENCIA
B25: DESERCIÓN | N25: CAMBIOS HACIA OTRAS ESCUELAS (TRASLADOS)
B26: PRIMERO | E26: SEGUNDO | H26: TERCERO | K26: TOTAL | N26: PRIMERO | Q26: SEGUNDO | T26: TERCERO | W26: TOTAL | Z26: PRIMERO | AC26: SEGUNDO | AF26: TERCERO | AI26: TOTAL
B27: H | C27: M | D27: T | E27: H | F27: M | G27: T | H27: H | I27: M | J27: T | K27: H | L27: M | M27: T | N27: H | O27: M | P27: T | Q27: H | R27: M | S27: T | T27: H | U27: M | V27: T | W27: H | X27: M | Y27: T | Z27: H | AA27: M | AB27: T | AC27: H | AD27: M | AE27: T | AF27: H | AG27: M | AH27: T | AI27: H | AJ27: M | AK27: T
A28: Grales. | B28: 27 | C28: 17 | D28: =IF(SUM(B28,C28)=0,"",SUM(B28,C28)) -> 44 | E28: 29 | F28: 20 | G28: =IF(SUM(E28,F28)=0,"",SUM(E28,F28)) -> 49 | H28: 52 | I28: 27 | J28: =IF(SUM(H28,I28)=0,"",SUM(H28,I28)) -> 79 | K28: =IF(SUM(B28,E28,H28)=0,"",SUM(B28,E28,H28)) -> 108 | L28: =IF(SUM(C28,F28,I28)=0,"",SUM(SUM(C28,F28,I28))) -> 64 | M28: =IF(SUM(K28,L28)=0,"",SUM(K28,L28)) -> 172 | N28: 137 | O28: 114 | P28: =IF(SUM(N28,O28)=0,"",SUM(N28,O28)) -> 251 | Q28: 108 | R28: 125 | S28: =IF(SUM(Q28,R28)=0,"",SUM(Q28,R28)) -> 233 | T28: 104 | U28: 82 | V28: =IF(SUM(T28,U28)=0,"",SUM(T28,U28)) -> 186 | W28: =IF(SUM(N28,Q28,T28)=0,"",SUM(N28,Q28,T28)) -> 349 | X28: =IF(SUM(O28,R28,U28)=0,"",SUM(SUM(O28,R28,U28))) -> 321 | Y28: =IF(SUM(W28,X28)=0,"",SUM(W28,X28)) -> 670 | Z28: 3366 | AA28: 3163 | AB28: =IF(SUM(Z28,AA28)=0,"",SUM(Z28,AA28)) -> 6529 | AC28: 3217 | AD28: 3124 | AE28: =IF(SUM(AC28,AD28)=0,"",SUM(AC28,AD28)) -> 6341 | AF28: 3064 | AG28: 3042 | AH28: =IF(SUM(AF28,AG28)=0,"",SUM(AF28,AG28)) -> 6106 | AI28: =IF(SUM(Z28,AC28,AF28)=0,"",SUM(Z28,AC28,AF28)) -> 9647 | AJ28: =IF(SUM(AA28,AD28,AG28)=0,"",SUM(SUM(AA28,AD28,AG28))) -> 9329 | AK28: =IF(SUM(AI28,AJ28)=0,"",SUM(AI28,AJ28)) -> 18976
A29: Técs. | B29: 20 | C29: 10 | D29: =IF(SUM(B29,C29)=0,"",SUM(B29,C29)) -> 30 | E29: 17 | F29: 15 | G29: =IF(SUM(E29,F29)=0,"",SUM(E29,F29)) -> 32 | H29: 16 | I29: 11 | J29: =IF(SUM(H29,I29)=0,"",SUM(H29,I29)) -> 27 | K29: =IF(SUM(B29,E29,H29)=0,"",SUM(B29,E29,H29)) -> 53 | L29: =IF(SUM(C29,F29,I29)=0,"",SUM(SUM(C29,F29,I29))) -> 36 | M29: =IF(SUM(K29,L29)=0,"",SUM(K29,L29)) -> 89 | N29: 83 | O29: 74 | P29: =IF(SUM(N29,O29)=0,"",SUM(N29,O29)) -> 157 | Q29: 65 | R29: 74 | S29: =IF(SUM(Q29,R29)=0,"",SUM(Q29,R29)) -> 139 | T29: 74 | U29: 58 | V29: =IF(SUM(T29,U29)=0,"",SUM(T29,U29)) -> 132 | W29: =IF(SUM(N29,Q29,T29)=0,"",SUM(N29,Q29,T29)) -> 222 | X29: =IF(SUM(O29,R29,U29)=0,"",SUM(SUM(O29,R29,U29))) -> 206 | Y29: =IF(SUM(W29,X29)=0,"",SUM(W29,X29)) -> 428 | Z29: 2518 | AA29: 2522 | AB29: =IF(SUM(Z29,AA29)=0,"",SUM(Z29,AA29)) -> 5040 | AC29: 2527 | AD29: 2459 | AE29: =IF(SUM(AC29,AD29)=0,"",SUM(AC29,AD29)) -> 4986 | AF29: 2460 | AG29: 2345 | AH29: =IF(SUM(AF29,AG29)=0,"",SUM(AF29,AG29)) -> 4805 | AI29: =IF(SUM(Z29,AC29,AF29)=0,"",SUM(Z29,AC29,AF29)) -> 7505 | AJ29: =IF(SUM(AA29,AD29,AG29)=0,"",SUM(SUM(AA29,AD29,AG29))) -> 7326 | AK29: =IF(SUM(AI29,AJ29)=0,"",SUM(AI29,AJ29)) -> 14831
A30: Telesec. | B30: 11 | C30: 9 | D30: 20 | E30: 9 | F30: 10 | G30: 19 | H30: 12 | I30: 9 | J30: 21 | K30: 32 | L30: 28 | M30: 60 | N30: 27 | O30: 15 | P30: 42 | Q30: 13 | R30: 19 | S30: 32 | T30: 14 | U30: 10 | V30: 24 | W30: 54 | X30: 44 | Y30: 98 | Z30: 789 | AA30: 702 | AB30: 1491 | AC30: 690 | AD30: 665 | AE30: 1355 | AF30: 717 | AG30: 649 | AH30: 1366 | AI30: 2196 | AJ30: 2016 | AK30: 4212
D36: =IF(SUM(B36,C36)=0,"",SUM(B36,C36)) ->  | G36: =IF(SUM(E36,F36)=0,"",SUM(E36,F36)) ->  | J36: =IF(SUM(H36,I36)=0,"",SUM(H36,I36)) ->  | K36: =IF(SUM(B36,E36,H36)=0,"",SUM(B36,E36,H36)) ->  | L36: =IF(SUM(C36,F36,I36)=0,"",SUM(SUM(C36,F36,I36))) ->  | M36: =IF(SUM(K36,L36)=0,"",SUM(K36,L36)) ->  | P36: =IF(SUM(N36,O36)=0,"",SUM(N36,O36)) ->  | S36: =IF(SUM(Q36,R36)=0,"",SUM(Q36,R36)) ->  | V36: =IF(SUM(T36,U36)=0,"",SUM(T36,U36)) ->  | W36: =IF(SUM(N36,Q36,T36)=0,"",SUM(N36,Q36,T36)) ->  | X36: =IF(SUM(O36,R36,U36)=0,"",SUM(SUM(O36,R36,U36))) ->  | Y36: =IF(SUM(W36,X36)=0,"",SUM(W36,X36)) ->  | AB36: =IF(SUM(Z36,AA36)=0,"",SUM(Z36,AA36)) ->  | AE36: =IF(SUM(AC36,AD36)=0,"",SUM(AC36,AD36)) ->  | AH36: =IF(SUM(AF36,AG36)=0,"",SUM(AF36,AG36)) ->  | AI36: =IF(SUM(Z36,AC36,AF36)=0,"",SUM(Z36,AC36,AF36)) ->  | AJ36: =IF(SUM(AA36,AD36,AG36)=0,"",SUM(SUM(AA36,AD36,AG36))) ->  | AK36: =IF(SUM(AI36,AJ36)=0,"",SUM(AI36,AJ36)) -> 
A38: TOTAL | B38: =SUM(B28:B37) -> 58 | C38: 36 | D38: 94 | E38: 55 | F38: 45 | G38: 100 | H38: 80 | I38: 47 | J38: 127 | K38: 193 | L38: 128 | M38: 321 | N38: 247 | O38: 203 | P38: 450 | Q38: 186 | R38: 218 | S38: 404 | T38: 192 | U38: 150 | V38: 342 | W38: 625 | X38: 571 | Y38: 1196 | Z38: =SUM(B22,N22-B38-N38) -> 6673 | AA38: =SUM(C22,O22-C38-O38) -> 6387 | AB38: =SUM(AB28:AB37) -> 13060 | AC38: =SUM(E22,Q22-E38-Q38) -> 6434 | AD38: =SUM(F22,R22-F38-R38) -> 6248 | AE38: =SUM(AE28:AE37) -> 12682 | AF38: =SUM(H22,T22-H38-T38) -> 6241 | AG38: =SUM(I22,U22-I38-U38) -> 6036 | AH38: =SUM(AH28:AH37) -> 12277 | AI38: =SUM(AI28:AI37) -> 19348 | AJ38: =SUM(AJ28:AJ37) -> 18671 | AK38: =SUM(AK28:AK37) -> 38019

Sheet NORMALIDAD MÍNIMA
A1: SECRETARÍA DE EDUCACIÓN PÚBLICA DEL ESTADO DE BAJA CALIFORNIA SUR
A2: DIRECCIÓN DE EDUCACIÓN SECUNDARIA
A3: CICLO ESCOLAR 2018 - 2019
A4: CONCENTRADO NORMALIDAD MÍNIMA
B5: DIRECCIÓN: EDUCACIÓN SECUNDARIA DIRECTOR: PROFR. RUMUALDO RAMÍREZ GUTIERRÉZ PERIODO DE EVALUACIÓN: 3ER. PERIODO.
B6: Modalidad | C6: DIRECTIVOS | F6: COORDINADORES | I6: R | J6: INASISTENCIAS | M6: LICENCIAS ECONÓMICAS | O6: LICENCIAS MÉDICAS | Q6: TOTAL DE DÍAS NO LABORADOS
C7: H | D7: M | E7: T | F7: H | G7: M | H7: T | J7: I | K7: P.D. | L7: D.N.L.I y P.D. | M7: L.E. | N7: D.N.L.E. | O7: L.M. | P7: D.N.L.M. | Q7: DNLI y PD, DNLE, DNLM
B8: Grales. | C8: 60 | D8: 66 | E8: =IF(SUM(C8,D8)=0,"",SUM(C8,D8)) -> 126 | F8: 41 | G8: 42 | H8: =IF(SUM(F8,G8)=0,"",SUM(F8,G8)) -> 83 | I8: 12 | J8: 63 | K8: 41 | L8: =IF(SUM(J8,K8)=0,"",SUM(J8,K8)) -> 104 | M8: 95 | N8: 266 | O8: 77 | P8: 414 | Q8: =IF(SUM(L8,N8,P8)=0,"0",SUM(L8,N8,P8)) -> 784
B9: Técs. | C9: 39 | D9: 24 | E9: =IF(SUM(C9,D9)=0,"",SUM(C9,D9)) -> 63 | F9: 37 | G9: 32 | H9: =IF(SUM(F9,G9)=0,"",SUM(F9,G9)) -> 69 | I9: 11 | J9: 60 | K9: 37 | L9: =IF(SUM(J9,K9)=0,"",SUM(J9,K9)) -> 97 | M9: 67 | N9: 179 | O9: 37 | P9: 183 | Q9: =IF(SUM(L9,N9,P9)=0,"0",SUM(L9,N9,P9)) -> 459
B10: Telesec. | C10: 25 | D10: 9 | E10: 34 | K10: 1 | L10: 1 | M10: 1 | N10: 1 | O10: 0 | P10: 0 | Q10: 2
L11: =IF(SUM(J11,K11)=0,"",SUM(J11,K11)) ->  | Q11: 0
Q12: 0
E13: =IF(SUM(C13,D13)=0,"",SUM(C13,D13)) ->  | H13: =IF(SUM(F13,G13)=0,"",SUM(F13,G13)) ->  | L13: =IF(SUM(J13,K13)=0,"",SUM(J13,K13)) ->  | Q13: =IF(SUM(L13,N13,P13)=0,"0",SUM(L13,N13,P13)) -> 0
Q14: 0
Q15: 0
Q16: 0
Q17: 0
B18: Total | C18: =SUM(C8:C17) -> 124 | D18: =SUM(D8:D17) -> 99 | E18: 223 | F18: 78 | G18: 74 | H18: 152 | I18: =SUM(I8:I17) -> 23 | J18: =SUM(J8:J17) -> 123 | K18: =SUM(K8:K17) -> 79 | L18: =SUM(L8:L17) -> 202 | M18: =SUM(M8:M17) -> 163 | N18: =SUM(N8:N17) -> 446 | O18: =SUM(O8:O17) -> 114 | P18: =SUM(P8:P17) -> 597 | Q18: =SUM(Q8:Q17) -> 1245
A20: Zona escolar | B20: Modalidad | C20: PERSONAL POR HORAS | F20: DOCENTES | I20: R | J20: INASISTENCIAS | M20: LICENCIAS ECONÓMICAS | O20: LICENCIAS MÉDICAS | Q20: TOTAL DE HORAS NO LABORADOS
F21: H | G21: M | H21: T | J21: I | K21: P.D. | L21: H.N.L.I y P.D. | M21: L.E. | N21: H.N.L.E. | O21: L.M. | P21: H.N.L.M. | Q21: HNLI y PD, HNLE, HNLM
B22: Grales. | F22: 643 | G22: 745 | H22: =IF(SUM(F22,G22)=0,"",SUM(F22,G22)) -> 1388 | I22: 1319 | J22: 2178 | K22: 1067 | L22: 6251 | M22: 1060 | N22: 11299 | O22: 617 | P22: 10854 | Q22: =IF(SUM(L22,N22,P22)=0,"0",SUM(L22,N22,P22)) -> 28404
B23: Técs. | F23: 270 | G23: 308 | H23: 578 | I23: 222 | J23: 2716 | K23: 330 | L23: 3922 | M23: 649 | N23: 6193 | O23: 366 | P23: 7313 | Q23: =IF(SUM(L23,N23,P23)=0,"0",SUM(L23,N23,P23)) -> 17428
B24: Telesec. | F24: 148 | G24: 106 | H24: 254 | J24: 2 | K24: 0 | L24: =2*6 -> 12 | M24: 84 | N24: =165*6 -> 990 | O24: 37 | P24: =183*6 -> 1098 | Q24: 2100
L25: =IF(SUM(J25,K25)=0,"",SUM(J25,K25)) ->  | Q25: 0
Q26: 0
Q27: 0
Q28: 0
Q29: 0
Q30: 0
Q31: 0
B32: Total | F32: =SUM(F22:F31) -> 1061 | G32: =SUM(G22:G31) -> 1159 | H32: 2220 | I32: 1541 | J32: 4896 | K32: 1397 | L32: 10185 | M32: 1793 | N32: 18482 | O32: 1020 | P32: 19265 | Q32: 47932
A35: Modalidad | C35: ASISTENCIA EDUCATIVA | F35: ADMINISTRATIVO Y DE APOYO | I35: R | J35: INASISTENCIAS | M35: LICENCIAS ECONÓMICAS | O35: LICENCIAS MÉDICAS | Q35: TOTAL DE DÍAS NO LABORADOS
C36: H | D36: M | E36: T | F36: H | G36: M | H36: T | J36: I | K36: P.D. | L36: D.N.L.I y P.D. | M36: L.E. | N36: D.N.L.E. | O36: L.M. | P36: D.N.L.M. | Q36: DNLI y PD, DNLE, DNLM
B37: Grales. | C37: 75 | D37: 155 | E37: =IF(SUM(C37,D37)=0,"",SUM(C37,D37)) -> 230 | F37: 230 | G37: 293 | H37: =IF(SUM(F37,G37)=0,"",SUM(F37,G37)) -> 523 | I37: 556 | J37: 331 | K37: 330 | L37: =SUM(J37,K37) -> 661 | M37: 691 | N37: 2045 | O37: 337 | P37: 1959 | Q37: =IF(SUM(L37,N37,P37)=0,"0",SUM(L37,N37,P37)) -> 4665
B38: Técs. | C38: 53 | D38: 68 | E38: 121 | F38: 109 | G38: 112 | H38: 221 | I38: 135 | J38: 143 | K38: 69 | L38: =SUM(J38,K38) -> 212 | M38: 418 | N38: 1242 | O38: 248 | P38: 1079 | Q38: =IF(SUM(L38,N38,P38)=0,"0",SUM(L38,N38,P38)) -> 2533
B39: Telesec. | C39: 1 | D39: 4 | E39: 5 | F39: 54 | G39: 49 | H39: 103 | J39: 2 | K39: 2 | L39: 4 | M39: 47 | N39: 103 | O39: 17 | P39: 66 | Q39: 173
L40: =IF(SUM(J40,K40)=0,"",SUM(J40,K40)) ->  | Q40: 0
Q41: 0
Q42: 0
Q43: 0
Q44: 0
Q45: 0
E46: =IF(SUM(C46,D46)=0,"",SUM(C46,D46)) ->  | H46: =IF(SUM(F46,G46)=0,"",SUM(F46,G46)) ->  | L46: =IF(SUM(J46,K46)=0,"",SUM(J46,K46)) ->  | Q46: 0
B47: Total | C47: =SUM(C37:C46) -> 129 | D47: =SUM(D37:D46) -> 227 | E47: 356 | F47: 393 | G47: 454 | H47: 847 | I47: 691 | J47: 476 | K47: 401 | L47: 877 | M47: 1156 | N47: 3390 | O47: 602 | P47: 3104 | Q47: 7371
B49: NOTA: | K49: NOTA:
B50: I.: INASISTENCIAS | K50: H.N.L.E.: HORAS NO LABORADOS POR LICENCIAS ECONÓMICAS
B51: H.N.L.I.: HORAS NO LABORADAS POR INASISTENCIAS | K51: D.N.L.E.: DÍAS NO LABORADOS POR LICENCIAS ECONÓMICAS
B52: D.N.L.I.: DÍAS NO LABORADOS POR INASISTENCIAS | K52: L.M.: PERSONAS QUE PRESENTARON LICENCIAS MÉDICAS
B53: R. : CANTIDAD DE RETARDOS | K53: H.N.L.M.: HORAS NO LABORADAS POR LICENCIAS MÉDICAS
B54: L.E.: PERSONAL QUE SOLICITÓ LICENCIAS ECONÓMICAS | K54: D.N.L.M.: DÍAS NO LABORADOS POR LICENCIAS MÉDICAS
B55: P.D.: PERMISOS DIRECCIÓN
